fUSD/lending_fUSD_20240301
["ID","MTS","AMOUNT","RATE_DAILY","PERIOD"]
[316025041,1709327473237,-585.61,0.00022575,2]
[316025042,1709327473251,-500.0,0.00022575,2]
[316025043,1709327473264,-500.0,0.00022575,2]
[316025044,1709327473278,-500.0,0.00022575,2]
[316025045,1709327473291,-421.14,0.00022575,2]
[316025046,1709327473303,-500.0,0.00022575,2]
[316025047,1709327473317,-500.0,0.00022575,2]
[316025048,1709327473333,-655.68,0.00022575,2]
[316025049,1709327473346,-500.0,0.00022575,2]
[316025050,1709327473359,-500.0,0.00022575,2]
[316025051,1709327473371,-500.0,0.00022575,2]
[316025052,1709327473384,-500.0,0.00022575,2]
[316025053,1709327473397,-500.0,0.00022575,2]
[316025054,1709327473409,-928.54,0.00022575,2]
[316025055,1709327473422,-549.82,0.00022575,2]
[316025056,1709327473435,-500.0,0.00022575,2]
[316025057,1709327473447,-391.24742653,0.00022575,2]
[316025058,1709327473460,-500.0,0.00022575,2]
[316025059,1709327473473,-500.0,0.00022575,2]
[316025060,1709327473485,-500.0,0.00022575,2]
[316025061,1709327473498,-584.15,0.00022575,2]
[316025062,1709327473513,-500.0,0.00022575,2]
[316025063,1709327473525,-537.75,0.00022575,2]
[316025064,1709327473537,-585.12,0.00022575,2]
[316025065,1709327473551,-740.69,0.00022575,2]
[316025066,1709327473563,-725.29,0.00022575,2]
[316025067,1709327473576,-500.0,0.00022575,2]
[316025068,1709327473589,-565.00467507,0.00022575,2]
[316025069,1709327473601,-500.0,0.00022575,2]
[316025070,1709327473614,-500.0,0.00022575,2]
[316025071,1709327473626,-461.31483873,0.00022575,2]
[316025072,1709327473639,-500.0,0.00022575,2]
[316025073,1709327473651,-500.0,0.00022575,2]
[316025074,1709327473665,-567.26,0.00022575,2]
[316025075,1709327473678,-1074.01,0.00022575,2]
[316025076,1709327473690,-500.0,0.00022575,2]
[316025077,1709327473703,-500.0,0.00022575,2]
[316025078,1709327473722,-724.85,0.00022575,2]
[316025079,1709327473735,-500.0,0.00022575,2]
[316025080,1709327473747,-500.0,0.00022575,2]
[316025081,1709327473758,-463.62916452,0.00022575,2]
[316025082,1709327473767,-500.0,0.00022575,2]
[316025083,1709327473777,-500.0,0.00022575,2]
[316025084,1709327473787,-500.0,0.00022575,2]
[316025085,1709327473798,-500.0,0.00022575,2]
[316025086,1709327473808,-603.39710759,0.00022575,2]
[316025087,1709327473818,-500.0,0.00022575,2]
[316025088,1709327473829,-500.0,0.00022575,2]
[316025089,1709327473839,-500.0,0.00022575,2]
[316025090,1709327473849,-661.14,0.00022575,2]
[316025091,1709327473859,-500.0,0.00022575,2]
[316025092,1709327473868,-677.52,0.00022575,2]
[316025093,1709327473877,-500.0,0.00022575,2]
[316025094,1709327473887,-500.0,0.00022575,2]
[316025095,1709327473897,-525.92496157,0.00022575,2]
[316025096,1709327473906,-500.0,0.00022575,2]
[316025097,1709327473915,-500.0,0.00022575,2]
[316025098,1709327473929,-500.0,0.00022575,2]
[316025099,1709327473938,-500.0,0.00022575,2]
[316025100,1709327473947,-886.35,0.00022575,2]
[316025101,1709327473956,-500.0,0.00022575,2]
[316025102,1709327473966,-621.47,0.00022575,2]
[316025103,1709327473976,-500.0,0.00022575,2]
[316025104,1709327473985,-500.0,0.00022575,2]
[316025105,1709327473994,-500.0,0.00022575,2]
[316025106,1709327474004,-381.74161706,0.00022575,2]
[316025107,1709327474014,-626.28,0.00022575,2]
[316025108,1709327474023,-500.0,0.00022575,2]
[316025109,1709327474034,-814.38,0.00022575,2]
[316025110,1709327474043,-500.0,0.00022575,2]
[316025111,1709327474055,-500.0,0.00022575,2]
[316025112,1709327474064,-500.0,0.00022575,2]
[316025113,1709327474075,-500.0,0.00022575,2]
[316025114,1709327474086,-500.0,0.00022575,2]
[316025115,1709327474099,-783.23,0.00022575,2]
[316025116,1709327474109,-500.0,0.00022575,2]
[316025117,1709327474118,-500.0,0.00022575,2]
[316025118,1709327474127,-500.0,0.00022575,2]
[316025119,1709327474137,-610.08,0.00022575,2]
[316025120,1709327474146,-500.0,0.00022575,2]
[316025121,1709327474155,-1032.68,0.00022575,2]
[316025122,1709327474165,-251.78,0.00022575,2]
[316025123,1709327474175,-500.0,0.00022575,2]
[316025124,1709327474183,-500.0,0.00022575,2]
[316025125,1709327474193,-500.0,0.00022575,2]
[316025126,1709327474202,-979.52,0.00022575,2]
[316025127,1709327474212,-500.0,0.00022575,2]
[316025128,1709327474221,-500.0,0.00022575,2]
[316025129,1709327474230,-500.0,0.00022575,2]
[316025130,1709327474240,-595.94,0.00022575,2]
[316025131,1709327474250,-500.0,0.00022575,2]
[316025132,1709327474259,-500.0,0.00022575,2]
[316025133,1709327474269,-368.41,0.00022575,2]
[316025134,1709327474278,-500.0,0.00022575,2]
[316025135,1709327474288,-500.0,0.00022575,2]
[316025136,1709327474297,-500.0,0.00022575,2]
[316025137,1709327474306,-500.0,0.00022575,2]
[316025138,1709327474316,-500.0,0.00022575,2]
[316025139,1709327474326,-500.0,0.00022575,2]
[316025140,1709327474813,-480.52,0.00022575,2]
[316025141,1709327474848,-694.02,0.00022575,2]
[316025142,1709327474870,-500.0,0.00022575,2]
[316025143,1709327474888,-730.54,0.00022575,2]
[316025144,1709327474899,-500.0,0.00022575,2]
[316025145,1709327474908,-500.0,0.00022575,2]
[316025146,1709327474918,-1631.05,0.00022575,2]
[316025147,1709327474928,-500.0,0.00022575,2]
[316025148,1709327474939,-500.0,0.00022575,2]
[316025149,1709327474948,-500.0,0.00022575,2]
[316025150,1709327474957,-500.0,0.00022575,2]
[316025151,1709327474966,-579.96,0.00022575,2]
[316025152,1709327474975,-500.0,0.00022575,2]
[316025153,1709327474985,-623.07,0.00022575,2]
[316025154,1709327474994,-635.47,0.00022575,2]
[316025155,1709327475004,-500.0,0.00022575,2]
[316025156,1709327475014,-570.22,0.00022575,2]
[316025157,1709327475023,-1967.89,0.00022575,2]
[316025158,1709327475033,-790.48,0.00022575,2]
[316025159,1709327475042,-500.0,0.00022575,2]
[316025160,1709327475051,-500.0,0.00022575,2]
[316025161,1709327475061,-3840.77,0.00022575,2]
[316025162,1709327475070,-500.0,0.00022575,2]
[316025163,1709327475080,-500.0,0.00022575,2]
[316025164,1709327475089,-709.22,0.00022575,2]
[316025165,1709327475099,-1023.93,0.00022575,2]
[316025166,1709327475108,-674.18,0.00022575,2]
[316025167,1709327475119,-802.02,0.00022575,2]
[316025168,1709327475128,-500.0,0.00022575,2]
[316025169,1709327475138,-758.5,0.00022575,2]
[316025170,1709327475148,-2460.18,0.00022575,2]
[316025171,1709327475159,-500.0,0.00022575,2]
[316025172,1709327475169,-500.0,0.00022575,2]
[316025173,1709327475178,-531.1,0.00022575,2]
[316025174,1709327475187,-874.36,0.00022575,2]
[316025175,1709327475197,-5095.22,0.00022575,2]
[316025176,1709327475209,-619.7,0.00022575,2]
[316025177,1709327475218,-4543.29,0.00022575,2]
[316025178,1709327475228,-500.0,0.00022575,2]
[316025179,1709327475237,-2791.17,0.00022575,2]
[316025180,1709327475247,-316.73333126,0.00022575,2]
[316025181,1709327475256,-500.0,0.00022575,2]
[316025182,1709327475266,-13075.41,0.00022575,2]
[316025183,1709327475275,-1086.33,0.00022575,2]
[316025184,1709327475285,-500.0,0.00022575,2]
[316025185,1709327475295,-697.61,0.00022575,2]
[316025186,1709327475304,-500.0,0.00022575,2]
[316025187,1709327475314,-2372.71,0.00022575,2]
[316025188,1709327475323,-531.57,0.00022575,2]
[316025189,1709327475334,-2238.29,0.00022575,2]
[316025190,1709327475344,-3273.4,0.00022575,2]
[316025191,1709327475353,-500.0,0.00022575,2]
[316025192,1709327475363,-3863.53,0.00022575,2]
[316025193,1709327475372,-500.0,0.00022575,2]
[316025194,1709327475382,-13361.28,0.00022575,2]
[316025195,1709327475392,-1208.49,0.00022575,2]
[316025196,1709327475401,-500.0,0.00022575,2]
[316025197,1709327475410,-4739.16,0.00022575,2]
[316025198,1709327475420,-1157.09,0.00022575,2]
[316025199,1709327475429,-15192.43,0.00022575,2]
[316025200,1709327475439,-846.42,0.00022575,2]
[316025201,1709327475448,-1083.08,0.00022575,2]
[316025202,1709327475458,-500.0,0.00022575,2]
[316025203,1709327475467,-500.0,0.00022575,2]
[316025204,1709327475477,-500.0,0.00022575,2]
[316025205,1709327475486,-500.0,0.00022575,2]
[316025206,1709327475496,-836.05,0.00022575,2]
[316025207,1709327475505,-500.0,0.00022575,2]
[316025208,1709327475515,-500.0,0.00022575,2]
[316025209,1709327475526,-3538.29,0.00022575,2]
[316025210,1709327475536,-1380.52,0.00022575,2]
[316025211,1709327475546,-1788.19,0.00022575,2]
[316025212,1709327475556,-570.9,0.00022575,2]
[316025213,1709327475566,-3365.09,0.00022575,2]
[316025214,1709327475576,-1080.69,0.00022575,2]
[316025215,1709327475586,-1084.53,0.00022575,2]
[316025216,1709327475595,-902.73,0.00022575,2]
[316025217,1709327475605,-1536.91,0.00022575,2]
[316025218,1709327475614,-7184.22,0.00022575,2]
[316025219,1709327475623,-712.93,0.00022575,2]
[316025220,1709327475632,-500.0,0.00022575,2]
[316025221,1709327475641,-2694.61,0.00022575,2]
[316025222,1709327475650,-500.0,0.00022575,2]
[316025223,1709327475660,-500.0,0.00022575,2]
[316025224,1709327475669,-527.47,0.00022575,2]
[316025225,1709327475679,-3160.24,0.00022575,2]
[316025226,1709327475688,-500.0,0.00022575,2]
[316025227,1709327475697,-2910.19,0.00022575,2]
[316025228,1709327475707,-907.07,0.00022575,2]
[316025229,1709327475717,-1012.0,0.00022575,2]
[316025230,1709327475726,-1643.86,0.00022575,2]
[316025231,1709327475737,-500.0,0.00022575,2]
[316025232,1709327475746,-518.91,0.00022575,2]
[316025233,1709327475757,-2423.72,0.00022575,2]
[316025234,1709327475766,-729.11,0.00022575,2]
[316025235,1709327475777,-500.0,0.00022575,2]
[316025236,1709327475787,-883.75,0.00022575,2]
[316025237,1709327475797,-509.83,0.00022575,2]
[316025238,1709327475806,-1378.45,0.00022575,2]
[316025239,1709327475816,-589.53,0.00022575,2]
[316025240,1709327475826,-500.0,0.00022575,2]
[316025241,1709327475836,-500.0,0.00022575,2]
[316025242,1709327475845,-500.0,0.00022575,2]
[316025243,1709327475855,-553.48,0.00022575,2]
[316025244,1709327475865,-500.0,0.00022575,2]
[316025245,1709327475874,-500.0,0.00022575,2]
[316025246,1709327475883,-735.21,0.00022575,2]
[316025247,1709327475893,-711.66,0.00022575,2]
[316025248,1709327475902,-500.0,0.00022575,2]
[316025249,1709327475911,-697.75,0.00022575,2]
[316025250,1709327475920,-1628.97,0.00022575,2]
[316025251,1709327475931,-500.0,0.00022575,2]
[316025252,1709327475940,-500.0,0.00022575,2]
[316025253,1709327475949,-746.85,0.00022575,2]
[316025254,1709327475958,-500.0,0.00022575,2]
[316025255,1709327475969,-500.0,0.00022575,2]
[316025256,1709327475979,-703.92,0.00022575,2]
[316025257,1709327475989,-766.47,0.00022575,2]
[316025258,1709327475999,-583.31,0.00022575,2]
[316025259,1709327476008,-500.0,0.00022575,2]
[316025260,1709327476018,-500.0,0.00022575,2]
[316025261,1709327476027,-932.22,0.00022575,2]
[316025262,1709327476037,-500.0,0.00022575,2]
[316025263,1709327476046,-894.62,0.00022575,2]
[316025264,1709327476056,-1880.26,0.00022575,2]
[316025265,1709327476067,-631.13150748,0.00022575,2]
[316025266,1709327476076,-1015.13,0.00022575,2]
[316025267,1709327476090,-729.79,0.00022575,2]
[316025268,1709327476099,-1414.53,0.00022575,2]
[316025269,1709327476109,-500.0,0.00022575,2]
[316025270,1709327476118,-914.2,0.00022575,2]
[316025271,1709327476128,-570.43,0.00022575,2]
[316025272,1709327476137,-629.7,0.00022575,2]
[316025273,1709327476146,-500.0,0.00022575,2]
[316025274,1709327476157,-2928.05,0.00022575,2]
[316025275,1709327476166,-582.48,0.00022575,2]
[316025276,1709327476176,-1028.0,0.00022575,2]
[316025277,1709327476186,-500.0,0.00022575,2]
[316025278,1709327476197,-626.77,0.00022575,2]
[316025279,1709327476206,-500.0,0.00022575,2]
[316025280,1709327476215,-552.37,0.00022575,2]
[316025281,1709327476229,-1008.5,0.00022575,2]
[316025282,1709327476238,-635.13,0.00022575,2]
[316025283,1709327476248,-1798.0,0.00022575,2]
[316025284,1709327476257,-3808.77,0.00022575,2]
[316025285,1709327476268,-500.0,0.00022575,2]
[316025286,1709327476278,-698.46,0.00022575,2]
[316025287,1709327476288,-748.33,0.00022575,2]
[316025288,1709327476299,-2046.85,0.00022575,2]
[316025289,1709327476310,-500.0,0.00022575,2]
[316025290,1709327476320,-817.49,0.00022575,2]
[316025291,1709327476332,-963.9,0.00022575,2]
[316025292,1709327476342,-500.0,0.00022575,2]
[316025293,1709327476351,-2795.7,0.00022575,2]
[316025294,1709327476362,-1750.36,0.00022575,2]
[316025295,1709327476372,-544.42,0.00022575,2]
[316025296,1709327476381,-500.0,0.00022575,2]
[316025297,1709327476391,-500.0,0.00022575,2]
[316025298,1709327476403,-1462.57,0.00022575,2]
[316025299,1709327476414,-515.75424141,0.00022575,2]
[316025300,1709327476425,-581.14,0.00022575,2]
[316025301,1709327476435,-963.96,0.00022575,2]
[316025302,1709327476444,-2872.28,0.00022575,2]
[316025303,1709327476454,-1433.79,0.00022575,2]
[316025304,1709327476463,-500.0,0.00022575,2]
[316025305,1709327476473,-564.73,0.00022575,2]
[316025306,1709327476483,-2954.46,0.00022575,2]
[316025307,1709327476497,-668.73,0.00022575,2]
[316025308,1709327476507,-500.0,0.00022575,2]
[316025309,1709327476518,-854.05,0.00022575,2]
[316025310,1709327476528,-500.0,0.00022575,2]
[316025311,1709327476538,-680.92,0.00022575,2]
[316025312,1709327476549,-500.0,0.00022575,2]
[316025313,1709327476559,-587.0,0.00022575,2]
[316025314,1709327476569,-500.0,0.00022575,2]
[316025315,1709327476580,-500.0,0.00022575,2]
[316025316,1709327476590,-500.0,0.00022575,2]
[316025317,1709327476599,-1483.22,0.00022575,2]
[316025318,1709327476610,-181.3459058,0.00022575,2]
[316025319,1709327476619,-992.09,0.00022575,2]
[316025320,1709327476629,-3296.84,0.00022575,2]
[316025321,1709327476639,-1166.7,0.00022575,2]
[316025322,1709327476649,-500.0,0.00022575,2]
[316025323,1709327476659,-500.0,0.00022575,2]
[316025324,1709327476669,-1520.97,0.00022575,2]
[316025325,1709327476679,-649.61,0.00022575,2]
[316025326,1709327476689,-1316.59,0.00022575,2]
[316025327,1709327476699,-718.57,0.00022575,2]
[316025328,1709327476709,-1959.03,0.00022575,2]
[316025329,1709327476718,-500.0,0.00022575,2]
[316025330,1709327476728,-10169.7,0.00022575,2]
[316025331,1709327476740,-2072.5,0.00022575,2]
[316025332,1709327476751,-500.0,0.00022575,2]
[316025333,1709327476761,-7070.22,0.00022575,2]
[316025334,1709327476771,-500.0,0.00022575,2]
[316025335,1709327476784,-529.11,0.00022575,2]
[316025336,1709327476794,-5861.18,0.00022575,2]
[316025337,1709327476804,-537.06,0.00022575,2]
[316025338,1709327476814,-33577.13,0.00022575,2]
[316025339,1709327476823,-1668.82,0.00022575,2]
[316025340,1709327476833,-891.32,0.00022575,2]
[316025341,1709327476843,-8901.44,0.00022575,2]
[316025342,1709327476853,-2011.98,0.00022575,2]
[316025343,1709327476862,-3361.6,0.00022575,2]
[316025344,1709327476871,-500.0,0.00022575,2]
[316025345,1709327476881,-967.73,0.00022575,2]
[316025346,1709327476891,-1064.03,0.00022575,2]
[316025347,1709327476901,-500.0,0.00022575,2]
[316025348,1709327476911,-500.0,0.00022575,2]
[316025349,1709327476920,-638.84,0.00022575,2]
[316025350,1709327476930,-2149.2,0.00022575,2]
[316025351,1709327476939,-957.0,0.00022585,2]
[316025352,1709327476949,-2237.089,0.00022585,2]
[316025353,1709327476959,-510.523,0.00022585,2]
[316025354,1709327476968,-290.67047282,0.00022594,2]
[316025355,1709327476977,-1000.0,0.000226,2]
[316025356,1709327476986,-2000.0,0.000226,2]
[316025357,1709327476996,-180.0,0.00022603,2]
[316025358,1709327477006,-164.87,0.00022609,2]
[316025359,1709327477015,-290.67047282,0.00022633,2]
[316025360,1709327477024,-302.4,0.00022657,2]
[316025361,1709327477034,-290.67047282,0.00022671,2]
[316025362,1709327477043,-268.37164607,0.00022683,2]
[316025363,1709327477054,-231.51055008,0.00022683,2]
[316025364,1709327477063,-500.0,0.00022684,2]
[316025365,1709327477072,-628.11150813,0.00022684,2]
[316025366,1709327477083,-500.0,0.00022684,2]
[316025367,1709327477092,-500.0,0.00022684,2]
[316025368,1709327477102,-500.0,0.00022684,2]
[316025369,1709327477112,-500.0,0.00022684,2]
[316025370,1709327477121,-500.0,0.00022684,2]
[316025371,1709327477130,-572.56,0.00022684,2]
[316025372,1709327477140,-500.0,0.00022684,2]
[316025373,1709327477150,-500.0,0.00022684,2]
[316025374,1709327477160,-500.0,0.00022684,2]
[316025375,1709327477169,-500.0,0.00022684,2]
[316025376,1709327477179,-500.0,0.00022684,2]
[316025377,1709327477189,-500.0,0.00022684,2]
[316025378,1709327477198,-500.0,0.00022684,2]
[316025379,1709327477208,-500.0,0.00022684,2]
[316025380,1709327477219,-704.59,0.00022684,2]
[316025381,1709327477230,-500.0,0.00022684,2]
[316025382,1709327477240,-500.0,0.00022684,2]
[316025383,1709327477250,-500.0,0.00022684,2]
[316025384,1709327477259,-500.0,0.00022684,2]
[316025385,1709327477269,-500.0,0.00022684,2]
[316025386,1709327477278,-500.0,0.00022684,2]
[316025387,1709327477288,-597.89,0.00022684,2]
[316025388,1709327477297,-500.0,0.00022684,2]
[316025389,1709327477307,-500.0,0.00022684,2]
[316025390,1709327477317,-500.0,0.00022684,2]
[316025391,1709327477327,-500.0,0.00022684,2]
[316025392,1709327477338,-500.0,0.00022684,2]
[316025393,1709327477348,-500.0,0.00022684,2]
[316025394,1709327477357,-500.0,0.00022684,2]
[316025395,1709327477367,-209.04393142,0.00022684,2]
[316025396,1709327477377,-500.0,0.00022684,2]
[316025397,1709327477386,-500.0,0.00022684,2]
[316025398,1709327477396,-500.0,0.00022684,2]
[316025399,1709327477406,-523.14666073,0.00022684,2]
[316025400,1709327477416,-500.0,0.00022684,2]
[316025401,1709327477426,-500.0,0.00022684,2]
[316025402,1709327477435,-563.82,0.00022684,2]
[316025403,1709327477446,-552.9,0.00022684,2]
[316025404,1709327477457,-500.0,0.00022684,2]
[316025405,1709327477467,-500.0,0.00022684,2]
[316025406,1709327477477,-500.0,0.00022684,2]
[316025407,1709327477488,-521.07,0.00022684,2]
[316025408,1709327477498,-500.0,0.00022684,2]
[316025409,1709327477509,-500.0,0.00022684,2]
[316025410,1709327477519,-500.0,0.00022684,2]
[316025411,1709327477529,-790.06,0.00022684,2]
[316025412,1709327477539,-554.47,0.00022684,2]
[316025413,1709327477550,-500.0,0.00022684,2]
[316025414,1709327477560,-500.0,0.00022684,2]
[316025415,1709327477571,-500.0,0.00022684,2]
[316025416,1709327477582,-566.29722938,0.00022684,2]
[316025417,1709327477593,-500.0,0.00022684,2]
[316025418,1709327477615,-620.34,0.00022684,2]
[316025419,1709327477626,-945.1,0.00022684,2]
[316025420,1709327477637,-500.0,0.00022684,2]
[316025421,1709327477648,-500.0,0.00022684,2]
[316025422,1709327477659,-500.0,0.00022684,2]
[316025423,1709327477670,-500.0,0.00022684,2]
[316025424,1709327477681,-500.0,0.00022684,2]
[316025425,1709327477691,-500.0,0.00022684,2]
[316025426,1709327477702,-507.13,0.00022684,2]
[316025427,1709327477714,-585.61,0.00022684,2]
[316025428,1709327477726,-500.0,0.00022684,2]
[316025429,1709327477736,-500.0,0.00022684,2]
[316025430,1709327477747,-500.0,0.00022684,2]
[316025431,1709327477758,-500.0,0.00022684,2]
[316025432,1709327477770,-366.0254633,0.00022684,2]
[316025433,1709327477781,-655.68,0.00022684,2]
[316025434,1709327477792,-500.0,0.00022684,2]
[316025435,1709327477803,-500.0,0.00022684,2]
[316025436,1709327477814,-500.0,0.00022684,2]
[316025437,1709327477825,-500.0,0.00022684,2]
[316025438,1709327477838,-500.0,0.00022684,2]
[316025439,1709327477849,-928.54,0.00022684,2]
[316025440,1709327477859,-549.82,0.00022684,2]
[316025441,1709327477870,-500.0,0.00022684,2]
[316025442,1709327477880,-500.0,0.00022684,2]
[316025443,1709327477891,-500.0,0.00022684,2]
[316025444,1709327477902,-500.0,0.00022684,2]
[316025445,1709327477913,-500.0,0.00022684,2]
[316025446,1709327477923,-537.75,0.00022684,2]
[316025447,1709327477933,-585.12,0.00022684,2]
[316025448,1709327477943,-740.69,0.00022684,2]
[316025449,1709327477953,-725.29,0.00022684,2]
[316025450,1709327477963,-297.35,0.00022684,2]
[316025451,1709327477973,-500.0,0.00022684,2]
[316025452,1709327477983,-500.0,0.00022684,2]
[316025453,1709327477993,-500.0,0.00022684,2]
[316025454,1709327478004,-500.0,0.00022684,2]
[316025455,1709327478014,-567.26,0.00022684,2]
[316025456,1709327478024,-1074.01,0.00022684,2]
[316025457,1709327478035,-476.01979132,0.00022684,2]
[316025458,1709327478045,-500.0,0.00022684,2]
[316025459,1709327478054,-724.85,0.00022684,2]
[316025460,1709327478065,-500.0,0.00022684,2]
[316025461,1709327478075,-500.0,0.00022684,2]
[316025462,1709327478087,-500.0,0.00022684,2]
[316025463,1709327478098,-500.0,0.00022684,2]
[316025464,1709327478108,-500.0,0.00022684,2]
[316025465,1709327478118,-500.0,0.00022684,2]
[316025466,1709327478128,-559.5645854,0.00022684,2]
[316025467,1709327478138,-500.0,0.00022684,2]
[316025468,1709327478148,-500.0,0.00022684,2]
[316025469,1709327478158,-661.14,0.00022684,2]
[316025470,1709327478405,-500.0,0.00022684,2]
[316025471,1709327478422,-677.52,0.00022684,2]
[316025472,1709327478432,-500.0,0.00022684,2]
[316025473,1709327478442,-500.0,0.00022684,2]
[316025474,1709327478451,-500.0,0.00022684,2]
[316025475,1709327478461,-500.0,0.00022684,2]
[316025476,1709327478471,-500.0,0.00022684,2]
[316025477,1709327478480,-500.0,0.00022684,2]
[316025478,1709327478490,-886.35,0.00022684,2]
[316025479,1709327478499,-500.0,0.00022684,2]
[316025480,1709327478509,-621.47,0.00022684,2]
[316025481,1709327478518,-500.0,0.00022684,2]
[316025482,1709327478528,-500.0,0.00022684,2]
[316025483,1709327478538,-489.99267944,0.00022684,2]
[316025484,1709327478547,-500.0,0.00022684,2]
[316025485,1709327478559,-626.28,0.00022684,2]
[316025486,1709327478569,-814.38,0.00022684,2]
[316025487,1709327478580,-500.0,0.00022684,2]
[316025488,1709327478589,-500.0,0.00022684,2]
[316025489,1709327478598,-500.0,0.00022684,2]
[316025490,1709327478608,-500.0,0.00022684,2]
[316025491,1709327478619,-500.0,0.00022684,2]
[316025492,1709327478630,-783.23,0.00022684,2]
[316025493,1709327478639,-500.0,0.00022684,2]
[316025494,1709327478648,-500.0,0.00022684,2]
[316025495,1709327478657,-500.0,0.00022684,2]
[316025496,1709327478667,-610.08,0.00022684,2]
[316025497,1709327478677,-500.0,0.00022684,2]
[316025498,1709327478688,-1032.68,0.00022684,2]
[316025499,1709327478697,-500.0,0.00022684,2]
[316025500,1709327478707,-500.0,0.00022684,2]
[316025501,1709327478723,-500.0,0.00022684,2]
[316025502,1709327478732,-979.52,0.00022684,2]
[316025503,1709327478742,-500.0,0.00022684,2]
[316025504,1709327478752,-500.0,0.00022684,2]
[316025505,1709327478763,-500.0,0.00022684,2]
[316025506,1709327478773,-595.94,0.00022684,2]
[316025507,1709327478782,-164.42169356,0.00022684,2]
[316025508,1709327478792,-542.09225418,0.00022684,2]
[316025509,1709327478801,-500.0,0.00022684,2]
[316025510,1709327478812,-500.0,0.00022684,2]
[316025511,1709327478822,-501.57,0.00022684,2]
[316025512,1709327478832,-500.0,0.00022684,2]
[316025513,1709327478842,-500.0,0.00022684,2]
[316025514,1709327478851,-694.02,0.00022684,2]
[316025515,1709327478860,-500.0,0.00022684,2]
[316025516,1709327478870,-730.54,0.00022684,2]
[316025517,1709327478879,-500.0,0.00022684,2]
[316025518,1709327478889,-500.0,0.00022684,2]
[316025519,1709327478898,-1631.05,0.00022684,2]
[316025520,1709327478908,-500.0,0.00022684,2]
[316025521,1709327478919,-500.0,0.00022684,2]
[316025522,1709327478928,-500.0,0.00022684,2]
[316025523,1709327478938,-388.48026296,0.00022684,2]
[316025524,1709327478947,-579.96,0.00022684,2]
[316025525,1709327478957,-500.0,0.00022684,2]
[316025526,1709327478967,-623.07,0.00022684,2]
[316025527,1709327478980,-635.47,0.00022684,2]
[316025528,1709327478990,-617.25,0.00022684,2]
[316025529,1709327479001,-570.22,0.00022684,2]
[316025530,1709327479011,-1967.89,0.00022684,2]
[316025531,1709327479021,-790.48,0.00022684,2]
[316025532,1709327479031,-500.0,0.00022684,2]
[316025533,1709327479041,-500.0,0.00022684,2]
[316025534,1709327479050,-3840.77,0.00022684,2]
[316025535,1709327479060,-500.0,0.00022684,2]
[316025536,1709327479069,-304.86,0.00022684,2]
[316025537,1709327479079,-709.22,0.00022684,2]
[316025538,1709327479090,-1023.93,0.00022684,2]
[316025539,1709327479100,-674.18,0.00022684,2]
[316025540,1709327479109,-802.02,0.00022684,2]